bitfinex/quotes_ETHUSD_20220119
["timestamp","ask_amount","ask_price","bid_price","bid_amount"]
[1642606808469,0.1277,3132.0,3131.1,1.61795814]
[1642606808669,0.1277,3132.0,3130.9,4.4497]
[1642606808670,0.12883684,3132.0,3130.9,4.4497]
[1642606808868,0.00113684,3132.0,3131.2,0.00341054]
[1642606809068,0.1277,3131.9,3131.2,0.00341054]
[1642606809473,1.29837399,3131.3,3131.2,0.00341054]
[1642606809970,7.34837399,3131.3,3130.8,0.00568424]
[1642606810175,1.4277,3131.2,3130.8,0.00568424]
[1642606811013,0.4277,3131.2,3130.8,0.00568424]
[1642606811213,1.4277,3131.2,3130.8,0.00568424]
[1642606811614,0.15909,3131.1,3130.8,0.00568424]
[1642606811813,0.15909,3131.1,3130.6,0.007]
[1642606811814,0.1277,3131.0,3130.7,0.00625266]
[1642606814018,1.9264,3131.1,3130.7,0.00625266]
[1642606814219,4.57494326,3130.8,3130.7,0.00625266]
[1642606814472,1.17494326,3130.8,3130.7,0.00625266]
[1642606814661,2.17494326,3130.8,3130.7,0.00625266]
[1642606814858,1.1277,3131.1,3130.7,0.00625266]
[1642606815058,4.04434107,3131.1,3130.7,0.00625266]
[1642606815459,6.05,3131.0,3130.3,0.76192266]
[1642606815660,1.1277,3130.9,3130.3,0.76192266]
[1642606815861,1.1277,3130.9,3130.4,0.00170527]
[1642606815862,1.12876805,3130.7,3130.4,0.00170527]
[1642606816062,1.12883684,3130.9,3130.4,0.00170527]
[1642606816063,1.12883684,3130.9,3130.5,1.56104213]
[1642606816263,1.12883684,3130.9,3130.5,2.65964213]
[1642606816461,0.12883684,3130.9,3130.5,2.65964213]
[1642606816862,0.00113684,3130.9,3130.5,2.65964213]
[1642606817268,0.00113684,3130.9,3130.5,1.86104213]
[1642606817466,0.00113684,3130.9,3130.5,1.56104213]
[1642606817665,0.00113684,3130.9,3130.4,0.00170527]
[1642606817966,0.1277,3130.8,3130.4,0.00170527]
[1642606819116,0.00113684,3130.9,3130.5,1.1874865]
[1642606819317,0.00113684,3130.9,3130.4,0.00170527]
[1642606819517,0.1277,3130.8,3130.4,0.00170527]
[1642606819718,1.18648593,3130.6,3130.4,0.00170527]
[1642606820316,2.28677783,3130.6,3130.4,0.00170527]
[1642606820916,2.28677783,3130.6,3130.2,0.00284212]
[1642606821116,1.18648593,3130.6,3130.2,0.00284212]
[1642606821317,1.18648593,3130.6,3130.3,0.79868]
[1642606821520,1.18648593,3130.6,3130.3,0.84868]
[1642606821816,0.1277,3130.8,3130.3,0.84868]
[1642606822460,0.1277,3130.8,3130.5,1.46318924]
[1642606822656,0.1277,3130.8,3130.5,1.76318924]
[1642606822956,0.00113684,3130.9,3130.5,2.56179924]
[1642606823161,0.00113684,3130.9,3130.5,0.3]
[1642606823359,0.00113684,3130.9,3130.2,0.00284212]
[1642606823360,0.1277,3130.8,3130.2,0.30284212]
[1642606823560,0.1277,3130.8,3130.2,0.00284212]
[1642606823762,0.1277,3130.8,3130.3,0.0022737]
[1642606823961,0.00113684,3130.9,3130.3,0.79867]
[1642606823962,0.12883684,3130.9,3130.3,0.79867]
[1642606824162,0.00113684,3130.9,3130.6,1.22978316]
[1642606824560,0.00113684,3130.9,3130.6,1.52978316]
[1642606824965,0.00113684,3130.9,3130.6,1.22978316]
[1642606825162,0.00113684,3130.9,3130.4,1.5971]
[1642606825562,0.00113684,3130.9,3130.5,0.00113685]
[1642606827222,0.00113684,3130.9,3130.5,1.51595674]
[1642606827416,0.00113684,3130.9,3130.5,0.00113685]
[1642606827620,0.00113684,3130.9,3130.5,1.09967685]
[1642606827818,0.00113684,3130.9,3130.5,0.30113685]
[1642606830863,0.16022684,3130.9,3130.5,0.00113685]
[1642606831268,0.16022684,3130.9,3130.3,1.11622456]
[1642606831269,5.14857576,3130.6,3130.2,0.00284212]
[1642606831674,1.29857576,3130.6,3130.2,0.00284212]
[1642606831869,1.0,3130.5,3130.2,0.00284212]
[1642606832068,0.1277,3130.8,3130.2,0.00284212]
[1642606832268,0.1277,3130.8,3130.5,1.30590384]
[1642606832468,0.255534,3130.8,3130.5,1.30590384]
[1642606832868,0.255534,3130.8,3130.2,0.00284212]
[1642606833213,0.255534,3130.8,3130.2,0.30284212]
[1642606833617,0.255534,3130.8,3130.3,0.0022737]
[1642606834018,1.80938303,3130.8,3130.3,0.0022737]
[1642606834617,1.30763615,3130.6,3130.3,0.0022737]
[1642606834818,0.1277,3130.5,3130.3,0.0022737]
[1642606835219,0.1277,3130.5,3130.2,0.00284212]
[1642606835619,1.30763615,3130.6,3130.2,0.00284212]
[1642606836970,1.45174304,3130.5,3130.2,0.00284212]
[1642606837168,1.30763615,3130.6,3130.2,0.00284212]
[1642606838473,1.30763615,3130.6,3130.2,1.10063532]
[1642606838773,0.1277,3130.7,3130.3,0.0022737]
[1642606838974,0.1277,3130.8,3130.3,0.0022737]
[1642606839873,2.70577487,3130.8,3130.3,0.0022737]
[1642606840279,1.15968,3130.7,3130.3,0.0022737]
[1642606840475,0.1277,3130.6,3130.3,0.0022737]
[1642606840708,0.1277,3130.6,3130.2,0.00284212]
[1642606841319,0.1277,3130.6,3130.3,1.35777616]
[1642606841517,1.1277,3130.7,3130.2,0.00284212]
[1642606842118,0.1277,3130.7,3130.2,0.00284212]
[1642606842321,0.1277,3130.8,3130.2,0.00284212]
[1642606842518,0.08257349,3130.6,3130.2,0.00284212]
[1642606843021,0.08257349,3130.6,3130.3,1.42724545]
[1642606843419,0.08257349,3130.6,3130.2,0.00284212]
[1642606844466,0.08257349,3130.6,3130.3,1.43168953]
[1642606844659,0.08257349,3130.6,3130.3,1.73168953]
[1642606844859,0.08257349,3130.6,3130.3,0.3]
[1642606845059,0.08257349,3130.6,3130.2,0.00284212]
[1642606846266,0.08257349,3130.6,3130.3,1.25565883]
[1642606846465,0.08257349,3130.6,3130.3,2.35425883]
[1642606847566,0.08257349,3130.6,3130.3,1.55565883]
[1642606847865,1.30396471,3130.6,3130.3,0.3]
[1642606848317,0.08257349,3130.6,3130.2,0.30284212]
[1642606848515,0.08257349,3130.6,3130.2,0.00284212]
[1642606848714,0.08257349,3130.6,3130.3,0.0022737]
[1642606848917,0.1277,3131.0,3130.2,0.00284212]
[1642606848918,1.1277,3131.0,3130.2,0.00284212]
[1642606849117,0.3,3131.0,3130.2,0.00284212]
[1642606849315,0.1277,3130.9,3130.5,1.15214907]
[1642606849516,0.3,3131.2,3130.5,0.3]
[1642606849517,0.1277,3131.1,3130.5,0.3]
[1642606849717,0.12997369,3131.1,3130.5,0.3]
[1642606850019,1.61980424,3130.5,3130.2,1.13874212]
[1642606850219,0.1277,3130.4,3130.2,1.13874212]
[1642606850419,0.1277,3130.4,3130.1,1.5760611]
[1642606850420,0.1277,3130.4,3130.3,0.0022737]
[1642606850828,0.1277,3130.4,3130.2,0.00284212]
[1642606851021,1.1277,3130.4,3130.2,0.00284212]
[1642606851322,0.1277,3130.4,3130.2,0.00284212]
[1642606851523,1.1277,3130.9,3130.2,0.00284212]
[1642606851719,0.1277,3130.9,3130.2,0.00284212]
[1642606851991,2.73120188,3130.8,3130.2,0.00284212]
[1642606852184,1.1277,3130.7,3130.2,0.00284212]
[1642606852587,0.1277,3130.7,3130.2,0.00284212]
[1642606852784,1.1277,3130.7,3130.2,0.00284212]
[1642606852982,0.1277,3130.7,3130.2,0.00284212]
[1642606853183,0.1277,3130.8,3130.2,0.00284212]
[1642606853786,1.13980226,3130.7,3130.2,0.00284212]
[1642606854188,2.13980226,3130.7,3130.2,0.00284212]
[1642606854388,1.13980226,3130.7,3130.2,0.00284212]
[1642606854588,2.13980226,3130.7,3130.2,1.62080026]
[1642606854787,2.43980226,3130.7,3130.2,0.00284212]
[1642606854988,2.43980226,3130.7,3130.3,0.0022737]
[1642606855187,2.43980226,3130.7,3130.1,1.5760611]
[1642606855188,0.1277,3130.6,3130.2,0.00284212]
[1642606856821,0.1277,3130.6,3130.2,1.62080026]
[1642606857225,0.1277,3130.6,3130.3,0.0022737]
[1642606857421,2.13980226,3130.7,3130.3,0.0022737]
[1642606857422,2.26750226,3130.7,3130.3,0.0022737]
[1642606857623,2.26750226,3130.7,3130.3,1.62023184]
[1642606858224,2.26750226,3130.7,3130.3,0.0022737]
[1642606858627,2.26750226,3130.7,3130.3,1.62023184]
[1642606859224,1.1277,3130.7,3130.3,0.0022737]
[1642606859481,1.1277,3130.7,3130.3,1.62023184]
[1642606859673,0.1277,3130.7,3130.3,1.62023184]
[1642606860076,0.255537,3130.8,3130.3,1.62023184]
[1642606860279,0.127837,3130.8,3130.5,1.61795814]
[1642606860577,0.127837,3130.8,3130.4,2.68472108]
[1642606860578,0.127837,3130.8,3130.6,3.48241715]
[1642606860775,0.00113684,3130.9,3130.6,3.48241715]
[1642606860976,0.00113684,3130.9,3130.7,1.22281599]
[1642606861578,0.00113684,3130.9,3130.6,1.56445901]
[1642606861780,0.00113684,3130.9,3130.4,0.458]
[1642606861978,0.1277,3130.8,3130.4,0.458]
[1642606862178,0.1277,3130.8,3130.5,0.00113685]
[1642606862578,0.00113684,3130.9,3130.5,0.00113685]
[1642606862778,0.00113684,3130.9,3130.5,1.25481914]
[1642606862979,0.00113684,3130.9,3130.5,1.55481914]
[1642606863215,0.00113684,3130.9,3130.5,0.30113685]
[1642606864219,1.53041417,3130.6,3130.5,0.00113685]
[1642606864420,0.00113684,3130.9,3130.5,0.00113685]
[1642606864621,0.1277,3130.6,3130.5,0.00113685]
[1642606864819,0.1277,3130.8,3130.3,0.0022737]
[1642606865020,1.1277,3130.8,3130.3,1.62023184]
[1642606865219,1.1277,3130.8,3130.3,0.0022737]
[1642606865426,0.1277,3130.8,3130.3,0.0022737]
[1642606865623,2.39420614,3130.8,3130.3,0.0022737]
[1642606865825,2.19293614,3130.8,3130.3,0.0022737]
[1642606866024,3.19293614,3130.8,3130.3,0.0022737]
[1642606866225,0.3,3130.7,3130.3,0.0022737]
[1642606866443,0.1277,3130.6,3130.3,0.0022737]
[1642606866825,0.1277,3130.6,3130.2,0.00284212]
[1642606867266,0.1277,3130.6,3130.2,1.62080026]
[1642606867470,0.1277,3130.7,3130.2,1.62080026]
[1642606867669,0.1277,3130.7,3130.3,0.0022737]
[1642606867870,0.25554,3130.7,3130.3,0.0022737]
[1642606868076,0.1277,3130.7,3130.3,0.0022737]
[1642606869078,1.38424976,3130.5,3130.3,0.0022737]
[1642606869376,2.95,3130.4,3130.3,0.0022737]
[1642606869676,0.1277,3130.4,3130.2,0.00284212]
[1642606870077,0.1277,3130.6,3130.1,1.52890322]
[1642606870278,0.1277,3130.6,3130.1,3.14686136]
[1642606870476,0.1277,3130.6,3130.1,1.52890322]
[1642606870477,0.00170527,3130.5,3130.1,1.52890322]
[1642606870919,0.00113685,3130.4,3130.1,1.52890322]
[1642606871118,1.36080925,3130.3,3130.1,1.52890322]
[1642606871520,1.32544312,3130.2,3130.1,1.52890322]
[1642606871724,0.00170527,3130.5,3130.1,1.52890322]
[1642606871725,0.1277,3130.4,3130.1,1.52890322]
[1642606871922,0.12955327,3130.5,3130.1,1.52890322]
[1642606872121,0.00113685,3130.4,3130.1,1.52890322]
[1642606872522,0.79882,3130.5,3130.1,1.52890322]
[1642606872723,1.33008528,3130.3,3130.1,1.52890322]
[1642606873024,7.29074933,3130.2,3130.1,1.52890322]
[1642606873228,7.57810933,3130.2,3130.1,1.52890322]
[1642606873426,8.87810933,3130.2,3130.1,1.52890322]
[1642606873825,8.71844933,3130.2,3130.1,1.52890322]
[1642606874125,6.0777,3130.2,3130.1,1.52890322]
[1642606874331,1.4277,3130.2,3130.1,1.52890322]
[1642606874571,1.22667,3130.2,3130.1,1.52890322]
[1642606874770,2.22667,3130.2,3130.1,1.52890322]
[1642606875371,8.23447269,3130.2,3130.1,1.52890322]
[1642606875579,8.36234069,3130.2,3130.1,1.52890322]
[1642606875775,5.554538,3130.2,3130.1,1.52890322]
[1642606875974,5.42667,3130.2,3130.1,1.52890322]
[1642606876175,4.6277,3130.2,3130.1,1.52890322]
[1642606876375,7.26726175,3130.2,3130.1,1.52890322]
[1642606876575,4.6277,3130.2,3130.1,1.52890322]
[1642606877375,4.78736,3130.2,3130.1,1.52890322]
[1642606877577,5.42664,3130.2,3130.1,1.52890322]
[1642606878230,0.79889,3130.3,3130.1,1.52890322]
[1642606878432,1.41472578,3130.4,3130.1,1.52890322]
[1642606878433,0.00113685,3130.4,3130.1,1.52890322]
[1642606878633,0.1277,3130.3,3130.1,1.52890322]
[1642606878832,0.00113685,3130.4,3130.1,1.52890322]
[1642606879435,0.00113685,3130.4,3130.3,1.28005158]
[1642606879833,0.00113685,3130.4,3130.1,1.52890322]
[1642606880733,1.00113685,3130.4,3130.1,1.52890322]
[1642606880934,0.3,3130.3,3130.1,1.52890322]
[1642606881233,1.09884,3130.3,3130.1,2.81064067]
[1642606881434,0.79884,3130.3,3130.1,2.81064067]
[1642606881635,0.3,3130.2,3130.1,1.52890322]
[1642606881833,1.00113685,3130.4,3130.1,1.52890322]
[1642606882074,0.00113685,3130.4,3130.1,1.52890322]
[1642606884886,0.1277,3130.3,3130.1,1.52890322]
[1642606885819,0.00113685,3130.4,3130.1,1.52890322]
[1642606886021,0.00113685,3130.4,3130.1,1.82890322]
[1642606886620,0.00113685,3130.4,3130.2,1.32701534]
[1642606886821,0.00113685,3130.4,3130.1,1.82890322]
[1642606887427,0.00113685,3130.4,3130.1,1.52890322]
[1642606888225,4.78672081,3130.2,3130.1,1.52890322]
[1642606888428,6.05,3130.1,3129.3,0.97449492]
[1642606888627,6.05,3130.1,3128.8,3.01616982]
[1642606888628,2.63283959,3130.0,3128.7,1.61795814]
[1642606888827,2.63283959,3130.0,3128.6,1.2136]
[1642606888828,6.05,3129.8,3128.6,2.63610553]
[1642606889028,0.1278,3129.9,3128.8,0.00341054]
[1642606889029,1.1278,3129.7,3128.8,0.00341054]
[1642606889228,2.26589714,3129.7,3129.1,1.49057081]
[1642606889478,0.12893685,3129.6,3129.1,2.84774837]
[1642606889682,0.12893685,3129.6,3129.2,0.00113684]
[1642606889882,0.00113685,3129.6,3129.2,0.00113684]
[1642606890684,0.00113685,3129.6,3129.2,1.22833684]
[1642606891083,0.00113685,3129.6,3129.3,2.20375814]
[1642606891284,0.00113685,3129.6,3129.3,2.53669439]
[1642606891484,0.00113685,3129.6,3129.3,0.91873625]
[1642606891689,0.00113685,3129.6,3129.5,5.36258883]
[1642606891886,0.00113685,3129.6,3129.5,5.82058883]
[1642606892084,0.00113685,3129.6,3129.5,6.24838883]
[1642606892485,0.00113685,3129.6,3129.5,7.86634697]
[1642606892688,0.00113685,3129.6,3129.5,6.24838883]
[1642606892884,0.00113685,3129.6,3129.5,6.74166351]
[1642606893087,0.00113685,3129.6,3129.5,9.7722816]
[1642606893330,0.61769,3131.5,3129.6,6.05076315]
[1642606893331,0.1278,3131.5,3129.6,6.05076315]
[1642606893534,2.64014513,3131.4,3130.2,0.01266836]
[1642606893729,2.64014513,3131.4,3130.3,0.5857]
[1642606893730,0.00625266,3130.7,3130.3,0.5857]
[1642606894130,0.1277,3131.6,3130.3,0.8857]
[1642606894131,0.00568423,3130.6,3130.3,0.8857]
[1642606894329,0.00568423,3130.6,3130.4,2.37459789]
[1642606894528,2.40514229,3131.3,3130.4,3.20373181]
[1642606894529,0.00511581,3130.5,3130.4,3.20373181]
[1642606894729,0.00511581,3130.5,3130.4,3.76260321]
[1642606895030,0.00511581,3130.5,3130.4,9.61260321]
[1642606896231,0.00511581,3130.5,3130.4,8.81420321]
[1642606896431,0.00511581,3130.5,3130.4,11.50967791]
[1642606896831,0.00511581,3130.5,3130.4,11.47894399]
[1642606897071,0.00511581,3130.5,3130.4,3.23346929]
[1642606897271,0.00511581,3130.5,3130.4,2.67459789]
[1642606898174,0.00511581,3130.5,3130.4,6.82459789]
[1642606898374,0.00511581,3130.5,3130.4,7.12459789]
[1642606898675,0.00511581,3130.5,3130.4,6.95229789]
[1642606899274,0.00511581,3130.5,3130.4,9.56908661]
[1642606899474,0.00511581,3130.5,3130.2,4.86879492]
[1642606899675,0.00511581,3130.5,3130.2,3.8943]
[1642606899873,0.00454739,3130.4,3130.1,7.1428]
[1642606900277,0.1277,3130.9,3130.1,7.1428]
[1642606900278,0.00397896,3130.3,3130.1,7.1428]
[1642606900742,0.00341054,3130.2,3130.0,3.67013695]
[1642606901131,0.00284212,3130.1,3130.0,3.97013695]
[1642606901334,0.00284212,3130.1,3130.0,3.17152695]
[1642606902035,0.00284212,3130.1,3130.0,8.77152695]
[1642606902236,0.00284212,3130.1,3130.0,9.22952695]
[1642606903636,0.00284212,3130.1,3130.0,3.62952695]
[1642606904036,0.00284212,3130.1,3130.0,7.52952695]
[1642606904673,0.00284212,3130.1,3130.0,7.22952695]
[1642606905872,0.00284212,3130.1,3130.0,7.52952695]
[1642606906277,0.00284212,3130.1,3130.0,3.62952695]
[1642606906875,0.00284212,3130.1,3130.0,6.07952695]
[1642606907274,0.00284212,3130.1,3130.0,4.10804182]
[1642606908428,0.00284212,3130.1,3130.0,2.75]
[1642606909029,0.00284212,3130.1,3129.7,4.01167562]
[1642606909230,0.00284212,3130.1,3129.6,1.59796315]
[1642606909231,0.13054212,3130.1,3130.0,0.54327826]
[1642606909432,3.95,3130.1,3130.0,0.54327826]
[1642606909630,8.26294401,3130.1,3130.0,0.54327826]
[1642606909829,7.96294401,3130.1,3130.0,0.54327826]
[1642606910028,8.96294401,3130.1,3130.0,0.54327826]
[1642606910630,9.09064401,3130.1,3129.6,0.00076315]
[1642606910834,3.79358882,3130.0,3129.6,0.00076315]
[1642606911028,3.79358882,3130.0,3129.2,3.72019999]
[1642606911029,2.8,3129.9,3129.2,3.72019999]
[1642606911234,0.1278,3129.8,3129.2,3.72019999]
[1642606911434,1.44979134,3129.7,3129.2,3.72019999]
[1642606911634,1.4514966,3129.7,3129.0,1.1592]
[1642606911835,0.00113684,3129.6,3128.9,3.1322]
[1642606912096,1.13380316,3129.5,3129.1,0.00170528]
[1642606912894,1.37418335,3129.0,3128.9,0.00284212]
[1642606913094,1.36547212,3129.0,3128.9,4.45284212]
[1642606913497,0.12893684,3129.6,3128.9,4.45284212]
[1642606913694,0.00113684,3129.6,3128.9,8.26869344]
[1642606913893,0.00113684,3129.6,3129.0,0.0022737]
[1642606914495,1.25273696,3129.6,3129.0,1.45747559]
[1642606914696,2.57376531,3129.6,3129.0,0.0022737]
[1642606914896,2.57376531,3129.6,3129.1,1.54749951]
[1642606915097,2.57376531,3129.6,3129.1,0.3]
[1642606915297,2.57376531,3129.6,3129.2,0.00113685]
[1642606915497,0.1278,3129.5,3129.2,0.00113685]
[1642606915717,2.57376531,3129.6,3129.0,0.0022737]
[1642606915920,0.1278,3129.5,3129.0,0.0022737]
[1642606916124,2.57376531,3129.6,3129.0,0.0022737]
[1642606916528,1.25273696,3129.6,3129.1,0.3]
[1642606916926,0.00113684,3129.6,3129.2,0.00113685]
[1642606917929,0.00113684,3129.6,3129.3,1.34833547]
[1642606918128,0.00113684,3129.6,3129.3,0.3]
[1642606918528,0.00113684,3129.6,3129.2,0.30113685]
[1642606918732,0.00113684,3129.6,3129.2,0.00113685]
[1642606919332,1.4393643,3129.5,3129.2,0.00113685]
[1642606919569,1.5671643,3129.5,3129.2,0.00113685]
[1642606919769,0.1278,3129.5,3129.2,0.00113685]
[1642606919968,0.1278,3129.5,3129.0,0.0022737]
[1642606920573,0.1278,3129.5,3128.9,0.00284212]
[1642606920769,1.62124444,3129.5,3128.9,1.12361622]
[1642606921172,1.62124444,3129.5,3129.0,0.0022737]
[1642606921874,1.10588864,3129.4,3129.1,0.54340785]
[1642606922074,1.10588864,3129.4,3129.1,0.84340785]
[1642606922274,0.1278,3129.5,3129.2,0.00113685]
[1642606922477,0.00113684,3129.6,3129.2,0.00113685]
[1642606923076,0.1278,3129.5,3129.2,0.00113685]
[1642606923528,0.1278,3129.5,3129.0,0.0022737]
[1642606923727,1.40420891,3129.1,3129.0,0.0022737]
[1642606924326,1.40420891,3129.1,3129.0,0.54344539]
[1642606924526,1.40420891,3129.1,3129.0,0.84344539]
[1642606924726,1.40420891,3129.1,3129.0,0.84571909]
[1642606925128,1.40420891,3129.1,3129.0,0.54571909]
[1642606927172,1.53200891,3129.1,3129.0,0.54571909]
[1642606927374,1.40420891,3129.1,3129.0,0.54571909]
[1642606927572,1.40420891,3129.1,3129.0,0.84571909]
[1642606927773,0.00113684,3129.6,3129.0,4.39571909]
[1642606927975,0.00113684,3129.6,3129.1,2.68658184]
[1642606928175,0.00113684,3129.6,3129.1,4.35782723]
[1642606928378,0.00113684,3129.6,3129.2,4.37153685]
[1642606928578,0.00113684,3129.6,3129.2,4.67153685]
[1642606928979,0.00113684,3129.6,3129.3,1.13266328]
[1642606929178,0.00113684,3129.6,3129.3,1.43266328]
[1642606930181,0.00113684,3129.6,3129.2,1.59847685]
[1642606930182,0.12893684,3129.6,3129.2,1.59847685]
[1642606930383,0.12893684,3129.6,3129.2,0.00113685]
[1642606932457,0.12893684,3129.6,3129.0,0.0022737]
[1642606932657,1.12893684,3129.6,3129.0,0.0022737]
[1642606932857,1.15893499,3129.1,3128.8,0.00341055]
[1642606933559,1.12893684,3129.6,3128.8,5.10341055]
[1642606933758,0.12893684,3129.6,3128.8,5.40341055]
[1642606933957,0.12893684,3129.6,3128.9,0.00284212]
[1642606934572,1.38334753,3129.4,3128.9,0.00284212]
[1642606934772,0.1278,3129.3,3128.9,0.00284212]
[1642606934969,1.19812362,3129.2,3128.9,0.00284212]
[1642606935369,1.19812362,3129.2,3128.6,0.00454739]
[1642606936373,0.1278,3129.3,3128.6,0.00454739]
[1642606936374,1.42438213,3128.7,3128.6,0.00454739]
[1642606936575,1.42438213,3128.7,3128.6,4.10454739]
[1642606936976,1.42438213,3128.7,3128.6,4.64798914]
[1642606937277,0.1278,3129.3,3128.6,4.64798914]
[1642606937278,1.1278,3129.3,3128.6,4.64798914]
[1642606937675,1.1278,3129.3,3128.7,0.00397897]
[1642606937876,0.1278,3129.3,3128.7,0.00397897]
[1642606938544,1.14791446,3128.9,3128.7,0.00397897]
[1642606940442,0.1278,3129.3,3128.7,0.00397897]
[1642606940643,0.00113684,3129.6,3128.7,0.00397897]
[1642606940644,0.1278,3129.5,3128.8,0.79894]
[1642606941042,0.1278,3129.5,3128.9,0.00284212]
[1642606941542,1.5023381,3129.1,3128.9,0.00284212]
[1642606941743,1.31737394,3129.5,3128.9,0.00284212]
[1642606942969,1.1278,3129.8,3129.0,1.09690691]
[1642606943171,0.1278,3129.8,3129.0,1.39690691]
[1642606943374,0.00170526,3129.7,3129.0,1.39690691]
[1642606943574,1.21728122,3129.2,3129.0,1.39690691]
[1642606943774,1.21728122,3129.2,3129.0,0.3]
[1642606943973,1.21728122,3129.2,3128.8,0.00341055]
[1642606944774,1.21728122,3129.2,3128.7,0.00397897]
[1642606944974,1.21728122,3129.2,3128.8,1.16459374]
[1642606945375,1.21728122,3129.2,3128.9,0.00284212]
[1642606946218,0.1278,3129.1,3128.9,0.00284212]
[1642606946418,0.1278,3129.1,3128.7,0.00397897]
[1642606947218,0.1278,3129.1,3128.8,1.43788211]
[1642606947619,0.1278,3129.1,3128.9,0.00284212]
[1642606948923,1.21728122,3129.2,3128.9,0.00284212]
[1642606949125,0.1278,3129.3,3128.9,0.00284212]
[1642606949327,0.16082684,3129.6,3128.9,0.00284212]
[1642606949328,0.1278,3129.5,3128.9,0.00284212]
[1642606949569,0.00113684,3129.6,3129.3,1.29700448]
[1642606949973,0.00113684,3129.6,3129.3,1.59700448]
[1642606951169,0.00113684,3129.6,3129.4,0.458]
[1642606951369,0.00113684,3129.6,3129.5,5.9278]
[1642606951568,0.00113684,3129.6,3129.5,6.2278]
[1642606951970,0.00113684,3129.6,3129.5,6.1]
[1642606953237,0.00113684,3129.6,3129.4,0.4278]
[1642606953439,0.00113684,3129.6,3129.2,0.1278]
[1642606953639,0.00113684,3129.6,3129.1,3.151]
[1642606953837,2.70972943,3129.6,3128.9,3.78104212]
[1642606954036,2.70972943,3129.6,3129.2,0.00113685]
[1642606954037,0.1278,3129.5,3129.2,0.00113685]
[1642606954236,2.70859259,3129.4,3129.0,0.0022737]
[1642606954438,2.70859259,3129.4,3128.6,1.2354]
[1642606954439,2.70859259,3129.4,3128.9,0.00284212]
[1642606954638,0.12893684,3129.6,3128.9,0.00284212]
[1642606954838,1.21134893,3129.3,3128.8,0.00341055]
[1642606955038,2.70970947,3129.2,3128.8,0.00341055]
[1642606955236,2.83750947,3129.2,3128.8,0.00341055]
[1642606955439,0.1278,3129.2,3128.6,0.00454739]
[1642606955642,0.1278,3129.2,3128.5,0.00511582]
[1642606955643,3.36546868,3129.2,3128.5,0.00511582]
[1642606955840,0.1278,3129.2,3128.5,0.00511582]
[1642606956039,1.36233187,3128.7,3128.5,0.00511582]
[1642606956339,1.36233187,3128.7,3128.5,3.35511582]
[1642606956340,1.32738076,3128.6,3128.5,3.35511582]
[1642606956986,1.32738076,3128.6,3128.5,3.65511582]
[1642606957372,1.32738076,3128.6,3128.5,3.35511582]
[1642606957971,1.32738076,3128.6,3128.5,3.65511582]
[1642606959881,0.1278,3129.4,3128.5,3.65511582]
[1642606960081,0.92686,3129.5,3128.5,3.78291582]
[1642606960282,2.71710831,3129.4,3128.6,0.00454739]
[1642606960582,0.1278,3129.3,3128.6,0.00454739]
[1642606960825,1.1278,3129.3,3128.6,0.00454739]
[1642606961021,1.3,3129.3,3128.6,0.00454739]
[1642606961222,1.3170447,3128.8,3128.6,1.28438548]
[1642606961430,0.1278,3129.4,3128.6,1.58438548]
[1642606961622,0.1278,3129.4,3128.7,0.00397897]
[1642606962422,1.32159493,3128.9,3128.7,0.00397897]
[1642606962625,4.4278,3128.8,3128.7,0.00397897]
[1642606962826,4.4278,3128.8,3128.5,0.00511582]
[1642606962827,7.30498939,3128.8,3128.5,0.00511582]
[1642606963022,3.71602037,3128.7,3128.3,0.00625267]
[1642606963224,0.1278,3128.6,3128.3,0.00625267]
[1642606963728,1.50111418,3128.4,3128.3,0.00625267]
[1642606963926,1.95911418,3128.4,3128.3,0.00625267]
[1642606964126,2.25911418,3128.4,3128.3,0.00625267]
[1642606964326,5.38691418,3128.4,3128.3,0.00625267]
[1642606964574,7.71468174,3128.4,3128.3,0.00625267]
[1642606965575,7.71468174,3128.4,3127.3,1.62164411]
[1642606965576,5.14937,3128.3,3127.1,1.11294457]
[1642606965777,0.1278,3128.3,3127.1,1.41294457]
[1642606965978,0.1278,3128.3,3127.2,0.00625265]
[1642606965979,0.4278,3128.3,3127.2,0.00625265]
[1642606966175,0.4278,3128.3,3127.2,0.30625265]
[1642606966176,1.1278,3128.3,3127.2,0.30625265]
[1642606966375,1.1278,3128.3,3127.6,1.18368527]
[1642606966576,0.1278,3128.3,3127.7,1.42884333]
[1642606966777,0.1278,3128.8,3127.7,1.43225387]
[1642606966975,0.1278,3128.9,3127.8,0.00284211]
[1642606967175,0.0022737,3128.7,3127.8,0.00284211]
[1642606967374,1.211,3129.0,3127.8,0.00284211]
[1642606967375,0.1278,3128.6,3127.8,0.00284211]
[1642606967575,1.15325713,3128.2,3127.8,0.00284211]
[1642606967776,1.43006053,3128.3,3127.8,0.00284211]
[1642606968219,0.00113685,3128.5,3127.8,0.00284211]
[1642606968824,1.3681116,3128.4,3127.8,0.00284211]
[1642606969026,1.4959116,3128.4,3127.8,0.00284211]
[1642606969927,0.1278,3128.4,3127.8,0.00284211]
[1642606970326,0.00113685,3128.5,3127.8,0.00284211]
[1642606970826,0.1278,3128.4,3127.8,0.00284211]
[1642606972079,3.105671,3128.4,3127.8,0.00284211]
[1642606972482,0.1278,3128.4,3127.8,0.00284211]
[1642606972681,4.04564786,3128.4,3127.8,0.00284211]
[1642606972882,2.63487665,3128.5,3127.8,0.00284211]
[1642606972883,1.18842441,3128.5,3127.8,0.00284211]
[1642606973480,0.1278,3128.4,3127.8,0.00284211]
[1642606974580,0.1278,3128.4,3127.8,1.24786878]
[1642606974980,0.1278,3128.4,3127.9,0.00227369]
[1642606975182,0.15969,3128.3,3127.9,0.00227369]
[1642606975482,1.48842441,3128.5,3127.8,0.00284211]
[1642606975483,0.1278,3128.2,3127.8,0.00284211]
[1642606975725,1.18842441,3128.5,3127.8,0.00284211]
[1642606975726,0.1278,3128.4,3127.8,0.00284211]
[1642606976131,1.51538244,3128.0,3127.8,0.00284211]
[1642606976329,2.8778,3127.9,3127.8,0.00284211]
[1642606976532,1.0,3128.2,3127.8,0.00284211]
[1642606976729,0.1278,3128.1,3127.8,0.00284211]
[1642606976929,0.1278,3128.2,3127.8,0.00284211]
[1642606977528,0.1278,3128.2,3127.7,0.79915]
[1642606977729,1.53141732,3127.9,3127.3,1.55729303]
[1642606977931,1.53141732,3127.9,3127.8,0.00284211]
[1642606978130,1.53141732,3127.9,3127.4,0.00511581]
[1642606979333,0.1278,3128.2,3127.5,2.25438835]
[1642606979578,0.1278,3128.2,3127.4,0.00511581]
[1642606979778,0.1278,3128.2,3127.6,0.00397896]
[1642606980076,0.1278,3128.2,3127.4,0.00511581]
[1642606980578,0.1278,3128.2,3127.3,0.00568423]
[1642606980777,1.24145569,3128.1,3127.5,2.90794651]
[1642606980977,1.00113685,3128.5,3127.5,2.90794651]